fUST/lending_fUST_20241127
["ID","MTS","AMOUNT","RATE_DAILY","PERIOD"]
[343477603,1732655432795,-533.359544,0.00028454,2]
[343477605,1732655432805,-266.679772,0.00028454,2]
[343477607,1732655432815,-324.19608684,0.00028579,2]
[343477609,1732655432825,-500.0,0.00028695,3]
[343477611,1732655432835,-500.0,0.00028695,3]
[343477613,1732655432845,-500.0,0.00028695,3]
[343477615,1732655432854,-500.0,0.00028695,3]
[343477617,1732655432865,-500.0,0.00028695,3]
[343477619,1732655432877,-619.62,0.00028701,3]
[343477621,1732655432899,-500.96071574,0.00028743,5]
[343477623,1732655432911,-500.0,0.000288,3]
[343477625,1732655432921,-500.0,0.000288,3]
[343477627,1732655432930,-500.0,0.000288,3]
[343477629,1732655432939,-500.0,0.000288,3]
[343477631,1732655432949,-157.149933,0.00028801,2]
[343477633,1732655432959,-369.758682,0.00028801,2]
[343477635,1732655432968,-533.359544,0.00028801,2]
[343477637,1732655432978,-266.679772,0.00028801,2]
[343477639,1732655432988,-162.852,0.00028801,21]
[343477641,1732655432998,-500.0,0.00028808,3]
[343477642,1732655433007,-500.0,0.00028808,3]
[343477644,1732655433017,-9111.53809408,0.00028934,2]
[343477646,1732655433026,-500.0,0.0002899,3]
[343477648,1732655433036,-153.0,0.00029014,30]
[343477650,1732655433046,-151.0,0.00029082,7]
[343477652,1732655433056,-420.0,0.00029083,2]
[343477654,1732655433067,-361.2,0.0002909,3]
[343477656,1732655433078,-221.94,0.0002909,10]
[343477658,1732655433089,-514.35690292,0.00029099,3]
[343477660,1732655433098,-500.0,0.00029099,3]
[343477662,1732655433109,-500.0,0.00029099,3]
[343477664,1732655433119,-500.0,0.00029099,3]
[343477666,1732655433129,-500.0,0.00029099,3]
[343477668,1732655433139,-500.0,0.00029099,3]
[343477669,1732655433151,-500.0,0.00029099,3]
[343477671,1732655433161,-215.8,0.00029099,3]
[343477672,1732655433171,-500.0,0.00029099,3]
[343477674,1732655433181,-500.0,0.00029099,3]
[343477676,1732655433191,-500.0,0.00029099,3]
[343477678,1732655433200,-18278.98350781,0.000291,2]
[343477680,1732655433211,-184.95,0.00029138,10]
[343477682,1732655433221,-157.149933,0.00029148,2]
[343477684,1732655433230,-172.085725,0.00029148,2]
[343477686,1732655433240,-369.758682,0.00029148,2]
[343477688,1732655433250,-173.0233,0.00029148,2]
[343477690,1732655433261,-533.359544,0.00029148,2]
[343477692,1732655433270,-266.679772,0.00029148,2]
[343477694,1732655433281,-302.66710251,0.00029153,8]
[343477696,1732655433291,-500.0,0.00029197,3]
[343477698,1732655433302,-611.80277328,0.00029197,3]
[343477700,1732655433313,-500.0,0.00029197,3]
[343477702,1732655433323,-500.0,0.00029197,3]
[343477704,1732655433332,-305.16969854,0.00029197,3]
[343477706,1732655433344,-324.41381404,0.00029198,2]
[343477708,1732655433353,-346.16405836,0.00029198,3]
[343477710,1732655433364,-500.0,0.00029198,3]
[343477712,1732655433374,-500.0,0.00029198,3]
[343477714,1732655433384,-500.0,0.00029198,3]
[343477716,1732655433394,-500.0,0.00029198,3]
[343477718,1732655433408,-500.0,0.00029198,3]
[343477720,1732655433418,-500.0,0.00029198,3]
[343477722,1732655433428,-500.0,0.00029198,2]
[343477724,1732655433438,-500.0,0.00029199,3]
[343477726,1732655433448,-500.0,0.00029199,3]
[343477728,1732655433457,-500.0,0.00029199,3]
[343477730,1732655433467,-500.0,0.00029199,3]
[343477732,1732655433477,-500.0,0.00029199,3]
[343477734,1732655433487,-500.0,0.00029199,3]
[343477736,1732655433496,-500.0,0.00029199,3]
[343477738,1732655433506,-500.0,0.00029199,3]
[343477740,1732655433516,-500.0,0.00029199,3]
[343477742,1732655433526,-500.0,0.00029199,3]
[343477744,1732655433536,-500.0,0.00029199,3]
[343477746,1732655433546,-500.0,0.00029199,3]
[343477748,1732655433555,-500.0,0.00029199,3]
[343477750,1732655433566,-619.62,0.00029199,3]
[343477752,1732655433576,-619.62,0.00029199,3]
[343477754,1732655433587,-619.62,0.00029199,3]
[343477756,1732655433597,-619.62,0.00029199,3]
[343477758,1732655433607,-619.62,0.00029199,3]
[343477760,1732655433616,-619.62,0.00029199,3]
[343477762,1732655433626,-619.62,0.00029199,3]
[343477764,1732655433636,-619.62,0.00029199,3]
[343477766,1732655433646,-619.62,0.00029199,3]
[343477768,1732655433662,-619.62,0.00029199,3]
[343477770,1732655433675,-619.62,0.00029199,3]
[343477772,1732655433686,-619.62,0.00029199,3]
[343477774,1732655433696,-619.62,0.00029199,3]
[343477776,1732655433705,-500.0,0.00029267,3]
[343477778,1732655433714,-619.62,0.00029267,3]
[343477780,1732655433724,-151.0,0.00029274,7]
[343477782,1732655433734,-177.83227327,0.00029295,2]
[343477784,1732655433743,-500.0,0.00029297,3]
[343477786,1732655433753,-500.0,0.00029297,3]
[343477788,1732655433762,-500.0,0.00029298,3]
[343477790,1732655433772,-500.0,0.00029298,3]
[343477792,1732655433781,-500.0,0.00029298,3]
[343477794,1732655433792,-500.0,0.00029298,3]
[343477796,1732655433802,-251.14160247,0.00029299,3]
[343477798,1732655433812,-619.62,0.00029299,3]
[343477800,1732655433824,-619.62,0.00029299,3]
[343477802,1732655433834,-619.62,0.00029299,3]
[343477804,1732655433844,-619.62,0.00029299,3]
[343477806,1732655433854,-619.62,0.00029299,3]
[343477808,1732655433864,-619.62,0.00029299,3]
[343477810,1732655433874,-619.62,0.00029299,3]
[343477812,1732655433889,-619.64471717,0.00029299,3]
[343477814,1732655433901,-500.0,0.00029299,3]
[343477816,1732655433911,-500.0,0.00029299,3]
[343477818,1732655433921,-500.0,0.00029299,3]
[343477820,1732655433931,-500.0,0.00029299,3]
[343477822,1732655433941,-500.0,0.00029299,3]
[343477824,1732655433951,-500.0,0.00029299,3]
[343477826,1732655433965,-500.0,0.00029299,3]
[343477828,1732655433975,-500.0,0.00029299,3]
[343477830,1732655433986,-500.0,0.00029299,3]
[343477832,1732655433995,-500.0,0.00029299,3]
[343477834,1732655434005,-500.0,0.00029299,3]
[343477836,1732655434015,-222.2,0.00029299,3]
[343477838,1732655434024,-500.0,0.00029299,3]
[343477840,1732655434034,-500.0,0.00029299,3]
[343477842,1732655434044,-500.0,0.00029299,3]
[343477844,1732655434054,-500.0,0.00029299,3]
[343477846,1732655434064,-500.0,0.00029299,3]
[343477848,1732655434073,-500.0,0.00029299,3]
[343477850,1732655434084,-500.0,0.00029299,3]
[343477852,1732655434093,-500.0,0.00029299,3]
[343477854,1732655434103,-191.57,0.00029299,3]
[343477855,1732655434113,-500.0,0.00029299,3]
[343477856,1732655434123,-500.0,0.00029299,3]
[343477857,1732655434132,-500.0,0.00029299,3]
[343477858,1732655434143,-500.0,0.00029299,3]
[343477859,1732655434158,-500.0,0.00029299,3]
[343477860,1732655434169,-500.0,0.00029299,3]
[343477861,1732655434178,-500.0,0.00029299,3]
[343477862,1732655434201,-500.0,0.00029299,3]
[343477863,1732655434212,-500.0,0.00029299,3]
[343477864,1732655434223,-500.0,0.00029299,3]
[343477865,1732655434233,-500.0,0.00029299,3]
[343477866,1732655434244,-167.51723605,0.00029299,3]
[343477867,1732655434254,-594.14137904,0.00029299,3]
[343477868,1732655434265,-1128.10828022,0.000293,2]
[343477869,1732655434276,-1941338.78403843,0.000293,5]
[343477870,1732655434300,-5608.52678833,0.000293,5]
[343477871,1732655434312,-3929.93798885,0.000293,5]
[343477959,1732655438696,-482.26155982,0.0002775,5]
[343477961,1732655438707,-154.12,0.0002929,10]
[343477963,1732655438718,-11.98641994,0.00029299,2]
[343478095,1732655440140,-388.22336841,0.00029299,2]
[343478098,1732655440153,-147.41550126,0.00029299,2]
[343478100,1732655440163,-171.11782181,0.00029299,2]
[343478102,1732655440173,-288.10659708,0.00029299,2]
[343478104,1732655440183,-523.33611486,0.00029299,2]
[343478106,1732655440193,-51931.56013588,0.000293,5]
[343478159,1732655443240,-2699.66544729,0.00024953,2]
[343478160,1732655443251,-500.0,0.00027397,3]
[343478161,1732655443261,-3677.13080971,0.000293,5]
[343478162,1732655443273,-158639.89092431,0.000293,5]
[343478175,1732655446084,-9740.64651119,0.000293,5]
[343478176,1732655446146,-714.27373382,0.000293,5]
[343478177,1732655446160,-466562.98039732,0.000293,5]
[343478178,1732655446173,-453.0,0.000293,5]
[343478179,1732655446186,-419.81826451,0.000293,5]
[343478180,1732655446208,-770.64,0.0002929,10]
[343478181,1732655446218,-45016.07973529,0.000293,5]
[343478182,1732655446233,-4615.25902073,0.000293,5]
[343479055,1732655755180,158.294066,0.00013973,2]
[343479078,1732656301926,5000.0,0.00022,2]
[343479085,1732656436142,-158.294066,0.00022174,2]
[343479086,1732656436165,-342.73272993,0.00025204,2]
[343479087,1732656436192,-2471.84791572,0.00025526,2]
[343479088,1732656448701,161.942176,0.00013973,2]
[343479089,1732656449110,-161.942176,0.00022759,2]
[343479090,1732656449132,-456.4526377,0.00025526,2]
[343479091,1732656451140,-5524.31091577,0.00025526,2]
[343479098,1732656547088,-277.97356952,0.0002201,16]
[343479122,1732656632351,-16.20393786,0.0002201,16]
[343479123,1732656632362,-300.0,0.00025089,2]
[343479124,1732656632372,-300.0,0.00025089,2]
[343479125,1732656632382,-2323.0,0.00025089,2]
[343479126,1732656632392,-6218.29606215,0.0002509,2]
[343479127,1732656632406,-9713.58232272,0.0002509,2]
[343479128,1732656632415,-16447.38853081,0.00025526,2]
[343479129,1732656632426,-4755.7605524,0.00025794,2]
[343479130,1732656632436,-359.40020614,0.00025794,2]
[343479131,1732656632445,-206.935092,0.00025871,2]
[343479132,1732656632455,-187.399801,0.00025983,2]
[343479134,1732656632464,-380.0,0.00025989,2]
[343479136,1732656632474,-2570.04858077,0.00026,2]
[343479138,1732656632484,-1886.71195064,0.00026,30]
[343479140,1732656632494,-187.399801,0.00026668,2]
[343479142,1732656632504,-195.08598739,0.00026799,2]
[343479143,1732656632513,-164.0,0.00027,2]
[343479144,1732656632524,-420.0,0.00027177,2]
[343479145,1732656632533,-162.852,0.00027347,16]
[343479146,1732656632543,-187.399801,0.00027353,2]
[343479147,1732656632553,-500.0,0.00027373,2]
[343479148,1732656632563,-160.0653048,0.00027373,2]
[343479149,1732656632573,-241.8168679,0.00027373,2]
[343479150,1732656632583,-174.01,0.00027387,10]
[343479151,1732656632593,-308.16,0.00027387,10]
[343479152,1732656632602,-643.7,0.00027387,3]
[343479153,1732656632612,-500.0,0.00027397,3]
[343479154,1732656632622,-500.0,0.00027397,3]
[343479155,1732656632632,-500.0,0.00027397,3]
[343479156,1732656632642,-500.0,0.00027397,3]
[343479157,1732656632651,-500.0,0.00027397,3]
[343479158,1732656632662,-500.0,0.00027397,3]
[343479159,1732656632672,-500.0,0.00027397,3]
[343479160,1732656632682,-509.54499334,0.00027397,3]
[343479161,1732656632692,-476.87326162,0.00027397,3]
[343479162,1732656632702,-549.70979865,0.00027397,3]
[343479163,1732656632711,-500.0,0.00027397,3]
[343479164,1732656632721,-500.0,0.00027397,3]
[343479165,1732656632730,-500.0,0.00027397,3]
[343479166,1732656632744,-500.0,0.00027397,3]
[343479167,1732656632753,-502.15793627,0.00027397,3]
[343479168,1732656632763,-500.0,0.00027397,3]
[343479169,1732656632772,-500.0,0.00027397,3]
[343479170,1732656632782,-154.78465665,0.00027397,3]
[343479171,1732656632791,-500.0,0.00027397,3]
[343479172,1732656632801,-500.0,0.00027397,3]
[343479173,1732656632810,-500.0,0.00027397,3]
[343479174,1732656632819,-541.91868956,0.00027397,3]
[343479175,1732656632830,-500.0,0.00027397,3]
[343479176,1732656632840,-500.0,0.00027397,3]
[343479177,1732656632850,-500.0,0.00027397,3]
[343479178,1732656632862,-500.0,0.00027397,3]
[343479179,1732656632872,-500.0,0.00027397,3]
[343479180,1732656632882,-500.0,0.00027397,3]
[343479181,1732656632891,-500.0,0.00027397,3]
[343479182,1732656632901,-500.0,0.00027397,3]
[343479183,1732656632911,-531.45994164,0.00027397,3]
[343479184,1732656632922,-500.0,0.00027397,3]
[343479185,1732656632931,-500.0,0.00027397,3]
[343479186,1732656632940,-500.0,0.00027397,3]
[343479187,1732656632950,-501.92980776,0.00027397,3]
[343479188,1732656632960,-500.0,0.00027397,3]
[343479189,1732656632969,-500.0,0.00027397,3]
[343479190,1732656632980,-500.0,0.00027397,3]
[343479191,1732656632992,-560.84242202,0.00027397,3]
[343479192,1732656633002,-552.69118442,0.00027397,3]
[343479193,1732656633011,-500.0,0.00027397,3]
[343479194,1732656633021,-511.16367232,0.00027397,3]
[343479195,1732656633031,-500.0,0.00027397,3]
[343479196,1732656633040,-648.76,0.00027397,3]
[343479197,1732656633050,-599.22547013,0.00027397,3]
[343479198,1732656633060,-228.51063151,0.00027397,3]
[343479199,1732656633070,-500.0,0.00027397,3]
[343479200,1732656633081,-500.0,0.00027397,3]
[343479201,1732656633091,-500.0,0.00027397,3]
[343479202,1732656633100,-504.13314776,0.00027397,3]
[343479203,1732656633111,-500.0,0.00027397,3]
[343479204,1732656633121,-503.48643751,0.00027397,3]
[343479205,1732656633131,-627.24259559,0.00027397,3]
[343479206,1732656633142,-501.72179566,0.00027397,3]
[343479207,1732656633151,-504.92905195,0.00027397,3]
[343479208,1732656633161,-500.0,0.00027397,3]
[343479209,1732656633171,-500.0,0.00027397,3]
[343479210,1732656633182,-500.0,0.00027397,3]
[343479211,1732656633192,-500.0,0.00027397,3]
[343479212,1732656633202,-500.0,0.00027397,3]
[343479213,1732656633212,-500.0,0.00027397,3]
[343479214,1732656633222,-503.87236723,0.00027397,3]
[343479215,1732656633234,-500.0,0.00027397,3]
[343479216,1732656633245,-500.0,0.00027397,3]
[343479217,1732656633255,-500.0,0.00027397,3]
[343479218,1732656633265,-514.31470326,0.00027397,3]
[343479219,1732656633277,-500.0,0.00027397,3]
[343479220,1732656633287,-500.0,0.00027397,3]
[343479221,1732656633296,-500.0,0.00027397,3]
[343479222,1732656633306,-500.0,0.00027397,3]
[343479223,1732656633317,-586.55,0.00027397,3]
[343479224,1732656633326,-500.0,0.00027397,3]
[343479225,1732656633336,-511.03856161,0.00027397,3]
[343479226,1732656633346,-500.0,0.00027397,3]
[343479227,1732656633356,-510.8335429,0.00027397,3]
[343479228,1732656633366,-500.0,0.00027397,3]
[343479229,1732656633375,-500.0,0.00027397,3]
[343479230,1732656633385,-500.0,0.00027397,3]
[343479231,1732656633395,-500.0,0.00027397,3]
[343479232,1732656633405,-500.0,0.00027397,3]
[343479233,1732656633415,-500.0,0.00027397,3]
[343479234,1732656633425,-546.28626098,0.00027397,3]
[343479235,1732656633435,-548.32549819,0.00027397,3]
[343479236,1732656633445,-500.0,0.00027397,3]
[343479237,1732656633455,-500.0,0.00027397,3]
[343479238,1732656633465,-500.0,0.00027397,3]
[343479239,1732656633475,-553.46,0.00027397,3]
[343479240,1732656633487,-516.51338388,0.00027397,3]
[343479241,1732656633496,-500.0,0.00027397,3]
[343479242,1732656633506,-500.0,0.00027397,3]
[343479243,1732656633515,-500.0,0.00027397,3]
[343479244,1732656633526,-500.0,0.00027397,3]
[343479245,1732656633535,-500.0,0.00027397,3]
[343479246,1732656633545,-500.0,0.00027397,3]
[343479247,1732656633555,-500.0,0.00027397,3]
[343479248,1732656633565,-500.0,0.00027397,3]
[343479249,1732656633575,-500.0,0.00027397,3]
[343479250,1732656633588,-500.0,0.00027397,3]
[343479251,1732656633608,-535.49303925,0.00027397,3]
[343479252,1732656633622,-500.0,0.00027397,3]
[343479253,1732656633632,-500.0,0.00027397,3]
[343479254,1732656633642,-500.0,0.00027397,3]
[343479255,1732656633652,-501.0605518,0.00027397,3]
[343479256,1732656633662,-500.0,0.00027397,3]
[343479257,1732656633672,-500.0,0.00027397,3]
[343479258,1732656633682,-505.98850184,0.00027397,3]
[343479259,1732656633692,-500.0,0.00027397,3]
[343479260,1732656633701,-550.9055224,0.00027397,3]
[343479261,1732656633711,-500.0,0.00027397,3]
[343479262,1732656633721,-500.0,0.00027397,3]
[343479263,1732656633731,-183.56319965,0.00027397,3]
[343479264,1732656633744,-500.0,0.00027397,3]
[343479265,1732656633762,-518.73,0.00027397,3]
[343479266,1732656633771,-500.0,0.00027397,3]
[343479267,1732656633781,-368.80909147,0.00027397,3]
[343479268,1732656633791,-203.90209121,0.00027397,3]
[343479269,1732656633800,-519.35696224,0.00027397,3]
[343479270,1732656633810,-500.0,0.00027397,3]
[343479271,1732656633820,-500.0,0.00027397,3]
[343479272,1732656633830,-500.0,0.00027397,3]
[343479273,1732656633839,-337.53475299,0.00027397,3]
[343479274,1732656633848,-500.0,0.00027397,3]
[343479275,1732656633859,-500.0,0.00027397,3]
[343479276,1732656633868,-500.0,0.00027397,3]
[343479277,1732656633878,-500.0,0.00027397,3]
[343479278,1732656633887,-500.0,0.00027397,3]
[343479279,1732656633896,-573.07,0.00027397,3]
[343479280,1732656633907,-500.0,0.00027397,3]
[343479281,1732656633917,-501.82278823,0.00027397,3]
[343479282,1732656633927,-500.0,0.00027397,3]
[343479283,1732656633937,-500.0,0.00027397,3]
[343479284,1732656633947,-500.0,0.00027397,3]
[343479285,1732656633956,-500.0,0.00027397,3]
[343479286,1732656633966,-500.0,0.00027397,3]
[343479287,1732656633976,-500.0,0.00027397,3]
[343479288,1732656633989,-506.32671332,0.00027397,3]
[343479289,1732656633998,-500.0,0.00027397,3]
[343479290,1732656634008,-500.0,0.00027397,3]
[343479291,1732656634018,-500.0,0.00027397,3]
[343479292,1732656634028,-500.0,0.00027397,3]
[343479293,1732656634037,-500.0,0.00027397,3]
[343479294,1732656634047,-500.0,0.00027397,3]
[343479295,1732656634057,-439.60942689,0.00027397,3]
[343479296,1732656634066,-500.0,0.00027397,3]
[343479297,1732656634076,-500.0,0.00027397,3]
[343479298,1732656634086,-500.0,0.00027397,3]
[343479299,1732656634096,-500.0,0.00027397,3]
[343479300,1732656634106,-500.0,0.00027397,3]
[343479301,1732656634116,-500.0,0.00027397,3]
[343479302,1732656634126,-500.0,0.00027397,3]
[343479303,1732656634136,-605.70290168,0.00027397,3]
[343479304,1732656634146,-500.0,0.00027397,3]
[343479305,1732656634156,-500.0,0.00027397,3]
[343479306,1732656634166,-614.96569744,0.00027397,3]
[343479307,1732656634176,-500.0,0.00027397,3]
[343479308,1732656634185,-500.0,0.00027397,3]
[343479309,1732656634195,-500.0,0.00027397,3]
[343479310,1732656634205,-500.0,0.00027397,3]
[343479311,1732656634215,-506.88720394,0.00027397,3]
[343479312,1732656634224,-500.22366992,0.00027397,3]
[343479313,1732656634237,-500.0,0.00027397,3]
[343479314,1732656634247,-500.0,0.00027397,3]
[343479315,1732656634257,-500.0,0.00027397,3]
[343479316,1732656634267,-500.0,0.00027397,3]
[343479317,1732656634279,-500.0,0.00027397,3]
[343479318,1732656634288,-500.0,0.00027397,3]
[343479319,1732656634298,-500.0,0.00027397,3]
[343479320,1732656634308,-500.0,0.00027397,3]
[343479321,1732656634319,-500.0,0.00027397,3]
[343479322,1732656634329,-502.15255354,0.00027397,3]
[343479323,1732656634442,-500.0,0.00027397,3]
[343479324,1732656634453,-500.0,0.00027397,3]
[343479325,1732656634463,-500.0,0.00027397,3]
[343479326,1732656634473,-500.0,0.00027397,3]
[343479327,1732656634483,-500.0,0.00027397,3]
[343479328,1732656634494,-500.93905833,0.00027397,3]
[343479329,1732656634503,-500.0,0.00027397,3]
[343479330,1732656634513,-500.0,0.00027397,3]
[343479331,1732656634524,-500.0,0.00027397,3]
[343479332,1732656634533,-500.0,0.00027397,3]
[343479333,1732656634543,-200.5715169,0.00027397,3]
[343479334,1732656634552,-295.48528183,0.00027397,3]
[343479335,1732656634561,-507.0333799,0.00027397,3]
[343479336,1732656634571,-500.0,0.00027397,3]
[343479337,1732656634581,-500.0,0.00027397,3]
[343479338,1732656634591,-504.5009296,0.00027397,3]
[343479339,1732656634600,-501.74391803,0.00027397,3]
[343479340,1732656634609,-358.89066505,0.00027397,3]
[343479341,1732656634619,-500.0,0.00027397,3]
[343479342,1732656634629,-409.58220793,0.00027397,3]
[343479343,1732656634638,-500.37293896,0.00027397,3]
[343479344,1732656634648,-500.0,0.00027397,3]
[343479345,1732656634659,-500.0,0.00027397,3]
[343479346,1732656634669,-500.0,0.00027397,3]
[343479347,1732656634679,-500.14516325,0.00027397,3]
[343479348,1732656634688,-500.0,0.00027397,3]
[343479349,1732656634698,-500.0,0.00027397,3]
[343479350,1732656634708,-500.0,0.00027397,3]
[343479351,1732656634717,-500.0,0.00027397,3]
[343479352,1732656634727,-562.06975128,0.00027397,3]
[343479353,1732656634738,-500.0,0.00027397,3]
[343479354,1732656634748,-582.54,0.00027397,3]
[343479355,1732656634757,-582.54,0.00027397,3]
[343479356,1732656634767,-582.54,0.00027397,3]
[343479357,1732656634776,-500.59483973,0.00027397,3]
[343479358,1732656634785,-582.54,0.00027397,3]
[343479359,1732656634795,-582.54,0.00027397,3]
[343479360,1732656634805,-582.54,0.00027397,3]
[343479361,1732656634814,-500.0,0.00027397,3]
[343479362,1732656634824,-500.0,0.00027397,3]
[343479363,1732656634833,-500.0,0.00027397,3]
[343479364,1732656634843,-500.0,0.00027397,3]
[343479365,1732656634853,-500.0,0.00027397,3]
[343479366,1732656634863,-500.0,0.00027397,3]
[343479367,1732656634873,-219.51,0.00027397,3]
[343479368,1732656634883,-500.0,0.00027397,3]
[343479369,1732656634899,-500.0,0.00027397,3]
[343479370,1732656634910,-500.0,0.00027397,3]
[343479371,1732656634920,-500.0,0.00027397,3]
[343479372,1732656634930,-501.10774319,0.00027397,3]
[343479373,1732656634939,-500.0,0.00027397,3]
[343479374,1732656634949,-501.18145406,0.00027397,3]
[343479375,1732656634959,-500.0,0.00027397,3]
[343479376,1732656634968,-500.0,0.00027397,3]
[343479377,1732656634978,-500.0,0.00027397,3]
[343479378,1732656634990,-500.0,0.00027397,3]
[343479379,1732656635000,-500.0,0.00027397,3]
[343479380,1732656635009,-500.0,0.00027397,3]
[343479381,1732656635018,-501.52584224,0.00027397,3]
[343479382,1732656635027,-500.0,0.00027397,3]
[343479383,1732656635036,-500.0,0.00027397,3]
[343479384,1732656635046,-500.0,0.00027397,3]
[343479386,1732656635054,-500.0,0.00027397,3]
[343479388,1732656635064,-501.32163251,0.00027397,3]
[343479389,1732656635073,-500.0,0.00027397,3]
[343479391,1732656635082,-500.0,0.00027397,3]
[343479393,1732656635091,-500.0,0.00027397,3]
[343479394,1732656635100,-500.0,0.00027397,3]
[343479396,1732656635109,-500.0,0.00027397,3]
[343479398,1732656635119,-500.0,0.00027397,3]
[343479399,1732656635128,-500.0,0.00027397,3]
[343479400,1732656635138,-500.0,0.00027397,3]
[343479401,1732656635147,-500.0,0.00027397,3]
[343479403,1732656635158,-500.0,0.00027397,3]
[343479405,1732656635167,-500.0,0.00027397,3]
[343479407,1732656635176,-500.0,0.00027397,3]
[343479408,1732656635186,-500.0,0.00027397,3]
[343479409,1732656635196,-500.0,0.00027397,3]
[343479411,1732656635205,-500.0,0.00027397,3]
[343479412,1732656635214,-500.0,0.00027397,3]
[343479413,1732656635224,-500.0,0.00027397,3]
[343479414,1732656635235,-501.04512443,0.00027397,3]
[343479415,1732656635245,-500.0,0.00027397,3]
[343479416,1732656635254,-500.0,0.00027397,3]
[343479417,1732656635263,-500.0,0.00027397,3]
[343479418,1732656635273,-500.0,0.00027397,3]
[343479419,1732656635282,-500.0,0.00027397,3]
[343479420,1732656635292,-500.0,0.00027397,3]
[343479421,1732656635302,-500.0,0.00027397,3]
[343479422,1732656635312,-500.0,0.00027397,3]
[343479423,1732656635323,-500.0,0.00027397,3]
[343479424,1732656635333,-500.0,0.00027397,3]
[343479425,1732656635342,-500.0,0.00027397,3]
[343479426,1732656635351,-500.0,0.00027397,3]
[343479427,1732656635361,-500.0,0.00027397,3]
[343479428,1732656635370,-500.0,0.00027397,3]
[343479429,1732656635380,-500.0,0.00027397,3]
[343479430,1732656635389,-500.0,0.00027397,3]
[343479431,1732656635399,-500.0,0.00027397,3]
[343479432,1732656635410,-500.0,0.00027397,3]
[343479433,1732656635420,-500.0,0.00027397,3]
[343479434,1732656635430,-500.0,0.00027397,3]
[343479435,1732656635439,-500.0,0.00027397,3]
[343479436,1732656635450,-500.0,0.00027397,3]
[343479437,1732656635460,-500.0,0.00027397,3]
[343479438,1732656635469,-500.0,0.00027397,3]
[343479439,1732656635479,-500.0,0.00027397,3]
[343479440,1732656635496,-303.89678298,0.00027397,3]
[343479441,1732656635506,-500.0,0.00027397,3]
[343479442,1732656635515,-500.0,0.00027397,3]
[343479443,1732656635524,-500.0,0.00027397,3]
[343479444,1732656635534,-202.96327716,0.00027397,3]
[343479445,1732656635543,-500.0,0.00027397,3]
[343479446,1732656635553,-574.17,0.00027397,3]
[343479447,1732656635562,-500.0,0.00027397,3]
[343479448,1732656635572,-500.0,0.00027397,3]
[343479449,1732656635581,-500.0,0.00027397,3]
[343479450,1732656635590,-500.0,0.00027397,3]
[343479451,1732656635600,-500.0,0.00027397,3]
[343479452,1732656635609,-500.0,0.00027397,3]
[343479453,1732656635618,-500.0,0.00027397,3]
[343479454,1732656635628,-500.0,0.00027397,3]
[343479455,1732656635637,-500.0,0.00027397,3]
[343479456,1732656635647,-500.0,0.00027397,3]
[343479457,1732656635657,-500.0,0.00027397,3]
[343479458,1732656635666,-430.55,0.00027397,3]
[343479459,1732656635675,-500.0,0.00027397,3]
[343479460,1732656635685,-504.73194367,0.00027397,3]